Workbook

Sheet Лист1 (hidden)
N2: срок
B3: Вкажіть бажану суму кредиту | D3: 30000 | N3: 6 | Q3: Условия
B4: Вкажіть бажаний строк кредиту | D4: 6 | N4: 12 | R4: 5000 - 50000 | S4: Комиссия | T4: 50000 - 100000 | U4: Комиссия
N5: 18 | Q5: Cross | R5: 0.2199 | S5: 0.0229 | T5: 0.1999 | U5: 0.0219
B6: Сума кредиту | D6: =D3 -> 30000 | N6: 24
B7: Розмір платежу в місяць | D7: =IF(AND(D3>=5000,D3<50000),PMT(R5/12,D4,-D3,0,0)+Q8,IF(AND(D3>=50000,D3<=100000),PMT(T5/12,D4,-D3,0,0)+Q8,"-")) -> 6012.539349 | N7: 30 | Q7: комиссия
B8: Переплата в місяць | D8: =D9/D4 -> 1012.539349 | N8: 36 | Q8: =IF(AND(D3>=5000,D3<50000),S5*D3,0)+IF(AND(D3>=50000,D3<=100000),U5*D3,0) -> 687
B9: Загальні витрати за кредитом | D9: =(D7*D4)-D3 -> 6075.236096 | N9: 42
B10: Загальна вартісь кредиту | D10: =D7*D4 -> 36075.2361 | N10: 48
B11: Реальна річна ставка | N11: 54
N12: 60
B14: =TODAY() -> 2025-04-08 | C14: Сума платежу за розрахунковий період | D14: Процент | E14: Комісія | F14: Погашення тіло кредиту | G14: Заборгованість
A15: 1 | B15: =EDATE(B14,1) -> 2025-05-08 | C15: =IF(A28<>"",ROUNDUP($D$7,0),IF(A15<>"",D15+E15+F15,"")) -> 1236.75 | D15: =IF(A15<>"",ROUND(R5*$D$6*30/(360),2),"") -> 549.75 | E15: =IF(A15<>"",$Q$8,"") -> 687
A16: =IF(A15<$D$4,A15+1,"") -> 2 | B16: 2025-06-08
A17: 3 | B17: 2025-07-08
A18: 4 | B18: 2025-08-08
A19: 5 | B19: 2025-09-08
A20: 6 | B20: 2025-10-08
B21: 2025-11-08
B22: 2025-12-08
B23: 2026-01-08
B24: 2026-02-08
B25: 2026-03-08
B26: 2026-04-08
B27: 2026-05-08
B28: 2026-06-08
B29: 2026-07-08
B30: 2026-08-08
B31: 2026-09-08
B32: 2026-10-08
B33: 2026-11-08
B34: 2026-12-08
B35: 2027-01-08
B36: 2027-02-08
B37: 2027-03-08
B38: 2027-04-08
B39: 2027-05-08
B40: 2027-06-08
B41: 2027-07-08
B42: 2027-08-08
B43: 2027-09-08
B44: 2027-10-08
B45: 2027-11-08
B46: 2027-12-08
B47: 2028-01-08
B48: 2028-02-08
B49: 2028-03-08
B50: 2028-04-08
B51: 2028-05-08
B52: 2028-06-08
B53: 2028-07-08
B54: 2028-08-08
B55: 2028-09-08
B56: 2028-10-08
B57: 2028-11-08
B58: 2028-12-08
B59: 2029-01-08
B60: 2029-02-08
B61: 2029-03-08
B62: 2029-04-08
B63: 2029-05-08
B64: 2029-06-08
B65: 2029-07-08
B66: 2029-08-08
B67: 2029-09-08
B68: 2029-10-08
B69: 2029-11-08
B70: 2029-12-08
B71: 2030-01-08
B72: 2030-02-08
B73: 2030-03-08
B74: 2030-04-08

Sheet Лист3 (hidden)
C1: Умови кредитування
C4: Продукт | E4: Персональный кредит
C5: Нік
B7: Калькулятор розрахунку загальної вартості кредиту*
B8: *Приклад розрахунку носить виключно інформаційний характер
B9: Для отримання розрахунку необхідно заповнити поля, що відображені сірим кольором.
B11: Cума кредиту від 5 000 до 100 000, грн. | E11: 101000
C12: Перший внесок | E12: 0 | I12: =E12/E11 -> 0 | P12: Условия
B13: Термін кредиту | E13: 36 | P13: 12 | R13: 5-50 | T13: 50-100 | V13: 100-200 | X13: 200-300
C15: Одноразова комісія | E15: 0 | I15: гривень | P15: Cross | R15: 0.35 | S15: 0.0225 | T15: 0.35 | U15: 0.02 | V15: 0.35 | W15: 0.0175 | X15: 0.35 | Y15: 0.014
B16: Результат розрахунку*
B17: *Орієнтовно на дату розрахунку, конкретні умови кредитування будуть вказані в паспорті споживчого кредиту в день оформлення кредитної заявки
B19: Щомісячна комісія | E19: =IF(AND(E11>=5000,E11<50000),S15,IF(AND(E11>=50000,E11<=100000),U15,IF(AND(E11>=100000,E11<200000),W15,IF(AND(E11>=200000,E11<=300000),Y15,0)))) -> 0.0175 | F19: =E19*E11 -> 1767.5 | I19: гривень
B20: Процентна ставка | E20: =IF(AND(E11>=5000,E11<50000),R15,IF(AND(E11>=50000,E11<=100000),T15,IF(AND(E11>=100000,E11<200000),V15,IF(AND(E11>=200000,E11<=300000),X15,0)))) -> 0.35
C21: Страхування | E21: 0 | I21: гривень | P21: срок
P22: 6
C23: Вкажіть термін кредиту | E23: 6 | P23: 12
C24: Строк кредитування | E24: =IF(MID(E5,1,4)="ES5V",E23+2,E23) -> 6 | H24: місяців | P24: 18
C25: Сума кредиту | E25: =(E11-E12+(E11-E12)*E15)*(1+E21*E24) -> 101000 | P25: 24
P26: 30
P27: 36
B28: Сума платежу за розрахунковий період, грн | E28: =PMT(E20/12,E13,-E11,0)+F19 -> 6336.340173 | P28: 42
B29: Реальна річна ставка, % | E29: =K88 -> 0.8559358954 | P29: 48
B30: Загальні витрати за кредитом, грн | E30: =E31-E11 -> 127108.2462 | P30: 60
B31: Загальна вартість кредиту, грн | E31: =D85 -> 228108.2462
B34: № | C34: Дата платежу | D34: Сума платежу за розрахунковий період, грн. | E34: Погашення суми кредиту, грн. | H34: Проценти за користування кредитом, грн. | I34: Щомісячна комісія, грн. | J34: РКО | L34: Заборгованість | Q34: Комісія за надання кредиту | R34: Послуги страховика, грн. | S34: Реальна річна процентна ставка | T34: Загальна вартісь кредиту, грн
B36: № | C36: =TODAY() -> 2025-04-08 | D36: =-E11 -> -101000 | E36: =E11 -> 101000 | H36: х | I36: х | K36: =-(E11-E12) -> -101000 | Q36: 0 | R36: 0 | S36: х | T36: х
B37: 1 | C37: =DATE(YEAR(C36),MONTH(C36)+1,DAY(C36)) -> 2025-05-08 | D37: =IF(B37<=$E$13,$E$28,0) -> 6336.340173 | E37: =D37-H37-I37 -> 1623.00684 | H37: =E11*E20/12 -> 2945.833333 | I37: =IF(B37<=$E$13,$E$19*$E$11,0) -> 1767.5 | J37: =IF(B37<>"",D37*$K$28,"") -> 0 | K37: =IF(B37<>"",J37+D37,"") -> 6336.340173 | L37: =E25-E37 -> 99376.99316 | Q37: 0 | R37: 0 | S37: х | T37: х
B38: 2 | C38: 2025-06-08 | D38: 6336.340173 | E38: 1670.34454 | H38: =IF(L37>0,L37*$E$20/12,0) -> 2898.495634 | I38: 1767.5 | J38: 0 | K38: 6336.340173 | L38: =L37-E38 -> 97706.64862 | Q38: 0 | R38: 0 | S38: х | T38: х
B39: 3 | C39: 2025-07-08 | D39: 6336.340173 | E39: 1719.062922 | H39: 2849.777251 | I39: 1767.5 | J39: 0 | K39: 6336.340173 | L39: 95987.5857 | Q39: 0 | R39: 0 | S39: х | T39: х
B40: 4 | C40: 2025-08-08 | D40: 6336.340173 | E40: 1769.202257 | H40: 2799.637916 | I40: 1767.5 | J40: 0 | K40: 6336.340173 | L40: 94218.38344 | Q40: 0 | R40: 0 | S40: х | T40: х
B41: 5 | C41: 2025-09-08 | D41: 6336.340173 | E41: 1820.80399 | H41: 2748.036184 | I41: 1767.5 | J41: 0 | K41: 6336.340173 | L41: 92397.57945 | Q41: 0 | R41: 0 | S41: х | T41: х
B42: 6 | C42: 2025-10-08 | D42: 6336.340173 | E42: 1873.910773 | H42: 2694.929401 | I42: 1767.5 | J42: 0 | K42: 6336.340173 | L42: 90523.66868 | Q42: 0 | R42: 0 | S42: х | T42: х
B43: 7 | C43: 2025-11-08 | D43: 6336.340173 | E43: 1928.566504 | H43: 2640.27367 | I43: 1767.5 | J43: 0 | K43: 6336.340173 | L43: 88595.10217 | Q43: 0 | R43: 0 | S43: х | T43: х
B44: 8 | C44: 2025-12-08 | D44: 6336.340173 | E44: 1984.81636 | H44: 2584.023813 | I44: 1767.5 | J44: 0 | K44: 6336.340173 | L44: 86610.28581 | Q44: 0 | R44: 0 | S44: х | T44: х
B45: 9 | C45: 2026-01-08 | D45: 6336.340173 | E45: 2042.706837 | H45: 2526.133336 | I45: 1767.5 | J45: 0 | K45: 6336.340173 | L45: 84567.57898 | Q45: 0 | R45: 0 | S45: х | T45: х
B46: 10 | C46: 2026-02-08 | D46: 6336.340173 | E46: 2102.285787 | H46: 2466.554387 | I46: 1767.5 | J46: 0 | K46: 6336.340173 | L46: 82465.29319 | Q46: 0 | R46: 0 | S46: х | T46: х
B47: 11 | C47: 2026-03-08 | D47: 6336.340173 | E47: 2163.602455 | H47: 2405.237718 | I47: 1767.5 | J47: 0 | K47: 6336.340173 | L47: 80301.69073 | Q47: 0 | R47: 0 | S47: х | T47: х
B48: 12 | C48: 2026-04-08 | D48: 6336.340173 | E48: 2226.707527 | H48: 2342.132646 | I48: 1767.5 | J48: 0 | K48: 6336.340173 | L48: 78074.98321 | Q48: 0 | R48: 0 | S48: х | T48: х
B49: 13 | C49: 2026-05-08 | D49: 6336.340173 | E49: 2291.653163 | H49: 2277.18701 | I49: 1767.5 | J49: 0 | K49: 6336.340173 | L49: 75783.33004 | Q49: 0 | R49: 0 | S49: х | T49: х
B50: 14 | C50: 2026-06-08 | D50: 6336.340173 | E50: 2358.493047 | H50: 2210.347126 | I50: 1767.5 | J50: 0 | K50: 6336.340173 | L50: 73424.837 | Q50: 0 | R50: 0 | S50: х | T50: х
B51: 15 | C51: 2026-07-08 | D51: 6336.340173 | E51: 2427.282428 | H51: 2141.557746 | I51: 1767.5 | J51: 0 | K51: 6336.340173 | L51: 70997.55457 | Q51: 0 | R51: 0 | S51: х | T51: х
B52: 16 | C52: 2026-08-08 | D52: 6336.340173 | E52: 2498.078165 | H52: 2070.762008 | I52: 1767.5 | J52: 0 | K52: 6336.340173 | L52: 68499.4764 | Q52: 0 | R52: 0 | S52: х | T52: х
B53: 17 | C53: 2026-09-08 | D53: 6336.340173 | E53: 2570.938778 | H53: 1997.901395 | I53: 1767.5 | J53: 0 | K53: 6336.340173 | L53: 65928.53763 | Q53: 0 | R53: 0 | S53: х | T53: х
B54: 18 | C54: 2026-10-08 | D54: 6336.340173 | E54: 2645.924493 | H54: 1922.915681 | I54: 1767.5 | J54: 0 | K54: 6336.340173 | L54: 63282.61313 | Q54: 0 | R54: 0 | S54: х | T54: х
B55: 19 | C55: 2026-11-08 | D55: 6336.340173 | E55: 2723.09729 | H55: 1845.742883 | I55: 1767.5 | J55: 0 | K55: 6336.340173 | L55: 60559.51584 | Q55: 0 | R55: 0 | S55: х | T55: х
B56: 20 | C56: 2026-12-08 | D56: 6336.340173 | E56: 2802.520961 | H56: 1766.319212 | I56: 1767.5 | J56: 0 | K56: 6336.340173 | L56: 57756.99488 | Q56: 0 | R56: 0 | S56: х | T56: х
B57: 21 | C57: 2027-01-08 | D57: 6336.340173 | E57: 2884.261156 | H57: 1684.579017 | I57: 1767.5 | J57: 0 | K57: 6336.340173 | L57: 54872.73373 | Q57: 0 | R57: 0 | S57: х | T57: х
B58: 22 | C58: 2027-02-08 | D58: 6336.340173 | E58: 2968.38544 | H58: 1600.454734 | I58: 1767.5 | J58: 0 | K58: 6336.340173 | L58: 51904.34829 | Q58: 0 | R58: 0 | S58: х | T58: х
B59: 23 | C59: 2027-03-08 | D59: 6336.340173 | E59: 3054.963349 | H59: 1513.876825 | I59: 1767.5 | J59: 0 | K59: 6336.340173 | L59: 48849.38494 | Q59: 0 | R59: 0 | S59: х | T59: х
B60: 24 | C60: 2027-04-08 | D60: 6336.340173 | E60: 3144.066446 | H60: 1424.773727 | I60: 1767.5 | J60: 0 | K60: 6336.340173 | L60: 45705.31849 | Q60: 0 | R60: 0 | S60: х | T60: х
B61: 25 | C61: 2027-05-08 | D61: 6336.340173 | E61: 3235.768384 | H61: 1333.071789 | I61: 1767.5 | J61: 0 | K61: 6336.340173 | L61: 42469.55011 | Q61: 0 | R61: 0 | S61: х | T61: х
B62: 26 | C62: 2027-06-08 | D62: 6336.340173 | E62: 3330.144962 | H62: 1238.695211 | I62: 1767.5 | J62: 0 | K62: 6336.340173 | L62: 39139.40514 | Q62: 0 | R62: 0 | S62: х | T62: х
B63: 27 | C63: 2027-07-08 | D63: 6336.340173 | E63: 3427.27419 | H63: 1141.565983 | I63: 1767.5 | J63: 0 | K63: 6336.340173 | L63: 35712.13095 | Q63: 0 | R63: 0 | S63: х | T63: х
B64: 28 | C64: 2027-08-08 | D64: 6336.340173 | E64: 3527.236354 | H64: 1041.60382 | I64: 1767.5 | J64: 0 | K64: 6336.340173 | L64: 32184.8946 | Q64: 0 | R64: 0 | S64: х | T64: х
B65: 29 | C65: 2027-09-08 | D65: 6336.340173 | E65: 3630.114081 | H65: 938.7260925 | I65: 1767.5 | J65: 0 | K65: 6336.340173 | L65: 28554.78052 | Q65: 0 | R65: 0 | S65: х | T65: х
B66: 30 | C66: 2027-10-08 | D66: 6336.340173 | E66: 3735.992408 | H66: 832.8477652 | I66: 1767.5 | J66: 0 | K66: 6336.340173 | L66: 24818.78811 | Q66: 0 | R66: 0 | S66: х | T66: х
B67: 31 | C67: 2027-11-08 | D67: 6336.340173 | E67: 3844.958854 | H67: 723.8813199 | I67: 1767.5 | J67: 0 | K67: 6336.340173 | L67: 20973.82926 | Q67: 0 | R67: 0 | S67: х | T67: х
B68: 32 | C68: 2027-12-08 | D68: 6336.340173 | E68: 3957.103487 | H68: 611.7366867 | I68: 1767.5 | J68: 0 | K68: 6336.340173 | L68: 17016.72577 | Q68: 0 | R68: 0 | S68: х | T68: х
B69: 33 | C69: 2028-01-08 | D69: 6336.340173 | E69: 4072.519005 | H69: 496.3211683 | I69: 1767.5 | J69: 0 | K69: 6336.340173 | L69: 12944.20677 | Q69: 0 | R69: 0 | S69: х | T69: х
B70: 34 | C70: 2028-02-08 | D70: 6336.340173 | E70: 4191.30081 | H70: 377.539364 | I70: 1767.5 | J70: 0 | K70: 6336.340173 | L70: 8752.905956 | Q70: 0 | R70: 0 | S70: х | T70: х
B71: 35 | C71: 2028-03-08 | D71: 6336.340173 | E71: 4313.547083 | H71: 255.2930904 | I71: 1767.5 | J71: 0 | K71: 6336.340173 | L71: 4439.358873 | Q71: 0 | R71: 0 | S71: х | T71: х
B72: 36 | C72: 2028-04-08 | D72: 6336.340173 | E72: 4439.358873 | H72: 129.4813005 | I72: 1767.5 | J72: 0 | K72: 6336.340173 | L72: 8.185452316e-12 | Q72: 0 | R72: 0 | S72: х | T72: х
B73: 37 | C73: 2028-05-08 | D73: 0 | E73: -2.387423592e-13 | H73: 2.387423592e-13 | I73: 0 | J73: 0 | K73: 0 | L73: 8.424194675e-12 | Q73: 0 | R73: 0 | S73: х | T73: х
B74: 38 | C74: 2028-06-08 | D74: 0 | E74: -2.45705678e-13 | H74: 2.45705678e-13 | I74: 0 | J74: 0 | K74: 0 | L74: 8.669900353e-12 | Q74: 0 | R74: 0 | S74: х | T74: х
B75: 39 | C75: 2028-07-08 | D75: 0 | E75: -2.528720936e-13 | H75: 2.528720936e-13 | I75: 0 | J75: 0 | K75: 0 | L75: 8.922772447e-12 | Q75: 0 | R75: 0 | S75: х | T75: х
B76: 40 | C76: 2028-08-08 | D76: 0 | E76: -2.602475297e-13 | H76: 2.602475297e-13 | I76: 0 | J76: 0 | K76: 0 | L76: 9.183019977e-12 | Q76: 0 | R76: 0 | S76: х | T76: х
B77: 41 | C77: 2028-09-08 | D77: 0 | E77: -2.678380826e-13 | H77: 2.678380826e-13 | I77: 0 | J77: 0 | K77: 0 | L77: 9.450858059e-12 | Q77: 0 | R77: 0 | S77: х | T77: х
B78: 42 | C78: 2028-10-08 | D78: 0 | E78: -2.756500267e-13 | H78: 2.756500267e-13 | I78: 0 | J78: 0 | K78: 0 | L78: 9.726508086e-12 | Q78: 0 | R78: 0 | S78: х | T78: х
B79: 43 | C79: 2028-11-08 | D79: 0 | E79: -2.836898192e-13 | H79: 2.836898192e-13 | I79: 0 | J79: 0 | K79: 0 | L79: 1.001019791e-11 | Q79: 0 | R79: 0 | S79: х | T79: х
B80: 44 | C80: 2028-12-08 | D80: 0 | E80: -2.919641056e-13 | H80: 2.919641056e-13 | I80: 0 | J80: 0 | K80: 0 | L80: 1.030216201e-11 | Q80: 0 | R80: 0 | S80: х | T80: х
B81: 45 | C81: 2029-01-08 | D81: 0 | E81: -3.004797253e-13 | H81: 3.004797253e-13 | I81: 0 | J81: 0 | K81: 0 | L81: 1.060264174e-11 | Q81: 0 | R81: 0 | S81: х | T81: х
B82: 46 | C82: 2029-02-08 | D82: 0 | E82: -3.092437173e-13 | H82: 3.092437173e-13 | I82: 0 | J82: 0 | K82: 0 | L82: 1.091188545e-11 | Q82: 0 | R82: 0 | S82: х | T82: х
B83: 47 | C83: 2029-03-08 | D83: 0 | E83: -3.182633257e-13 | H83: 3.182633257e-13 | I83: 0 | J83: 0 | K83: 0 | L83: 1.123014878e-11 | Q83: 0 | R83: 0 | S83: х | T83: х
B84: 48 | C84: 2029-04-08 | D84: 0 | E84: -3.275460061e-13 | H84: 3.275460061e-13 | I84: 0 | J84: 0 | K84: 0 | L84: 1.155769479e-11 | Q84: 0 | R84: 0 | S84: х | T84: х
B85: Усього: | D85: =SUM(D37:D84) -> 228108.2462 | E85: 101000 | H85: =SUM(H37:H72) -> 63478.24625 | I85: =SUM(I37:I84) -> 63630 | J85: 0 | K85: 228108.2462 | Q85: 0 | R85: 0 | S85: =E29 -> 0.8559358954 | T85: =E31 -> 228108.2462
C87: Абсолютне значення подорожчання кредиту | K87: =D85-E11+E12+J85 -> 127108.2462
E88: Реальна процентна ставка | K88: =XIRR(D36:D84,C36:C84) -> 0.8559358954
K89: =K87/E11 -> 1.258497488

Sheet Калькулятор
B2: Калькулятор розрахунку загальної вартості кредиту*
B3: *Приклад розрахунку носить виключно інформаційний характер
B4: Для отримання розрахунку необхідно заповнити поля, що відображені сірим кольором.
B6: Сума кредиту від 300 000 до 1 000 000 | D6: 300000
B7: Перший внесок | D7: 0
B9: Строк кредитування | D9: 36
B11: Одноразова комісія | D11: 0.019 | E11: =(D6-D7)*D11 -> 5700 | F11: гривень
B13: Результат розрахунку* | N13: 6 | O13: 12 | P13: 24 | Q13: 30 | R13: 36 | S13: 42 | T13: 48 | U13: 60
B14: *Орієнтовно на дату розрахунку, конкретні умови кредитування будуть вказані в паспорті споживчого кредиту в день оформлення кредитної заявки | K14: =D6*E17/12 -> 7250
E16: Процентна ставка | G16: Сума щомісячної комісії
B17: Щомісячна комісія | D17: 0 | E17: 0.29 | G17: =ROUND(F17*D6,0) -> 0 | H17: гривень
B18: Грейс період 2 | D18: 0 | E18: 0.0001 | F18: 0.0299 | G18: =ROUND(F18*D6,0) -> 8970 | H18: гривень
B19: Щомісячна комісія в 2й період | D19: 0 | E19: 0.29 | F19: 0 | G19: =ROUND(F19*D6,0) -> 0 | H19: гривень
B20: Страхування | D20: 0 | E20: =(D6-D7+(D6-D7)*D11+D6*D21*D9+D6*D22)*D20*D9 -> 0 | F20: гривень
B21: Страхування 2 | D21: 0 | E21: =D6*D21*D9 -> 0 | F21: гривень
B22: Страхування 3 | D22: 0 | E22: =D6*D22 -> 0 | F22: гривень
I23: =IRR(D36:D52)*12 -> -0.4995238379
B25: Комісія за надання кредиту, % | D25: =D11 -> 0.019
B26: Комісія за надання кредиту, грн. | D26: =E11 -> 5700
B27: Сума для зарахування на картку | D27: =D6-D26 -> 294300
B28: Сума платежу за розрахунковий період, грн | D28: =ROUNDUP((D6+D17*G17+D18*G18+D19*G19-IF(D17=0,0,CUMIPMT(E17/12,D9,D6,1,D17,0))-IF(D18=0,0,CUMIPMT(E18/12,D9,D6,D17+1,D18+D17,0))-CUMIPMT(E19/12,D9,D6,IF(AND(D17=0,D18=0),1,D17+D18),D9,0))/D9,0)+E28 -> 12572
B29: Реальна річна ставка, % | D29: =H100 -> 0.3508817732
B30: Загальні витрати за кредитом, грн | D30: =F97+G97+J97 -> 158275.9279
B31: Загальна вартість кредиту, грн | D31: =D30+D6 -> 458275.9279
R32: =DAYS360(B37,B36) -> -30
A34: № | B34: Дата платежу | D34: Сума платежу за розрахунковий період, грн. | E34: Погашення суми кредиту, грн. | F34: Проценти за користування кредитом, грн. | G34: Щомісячна комісія, грн. | H34: РКО | J34: Комісія за надання кредиту | K34: Заборгованість | L34: Послуги страховика, грн. | M34: Реальна річна процентна ставка | N34: Загальна вартісь кредиту, грн
B36: =TODAY() -> 2025-04-08 | D36: =-(D6-D26) -> -294300 | E36: =D6 -> 300000 | F36: Х | G36: Х | I36: =-(D6-D7) -> -300000 | J36: =E11 -> 5700 | L36: 0 | M36: х | N36: х
A37: 1 | B37: =DATE(YEAR(B36),MONTH(B36)+1,DAY(B36)) -> 2025-05-08 | D37: =IF(A37<=$D$9,$D$28,0) -> 12572 | E37: =D37-F37-G37 -> 5322 | F37: =IF(AND(A37<>"",A37<=$D$17,$D$17<>0),ROUND($D$6*DAYS360(B36,B37,1)*($E$17/360),2),IF(AND(A37<>"",A37<=$D$17+$D$18,$D$17<>0,$D$18<>0),ROUND($D$6*DAYS360(B36,B37,1)*($E$18/360),2),ROUND($D$6*$E$19*30/(360),2))) -> 7250 | G37: =IF(AND(A37<>"",A37<=$D$17),$G$17,IF(AND(A37<>"",A37<=$D$17+$D$18),$G$18,IF(A37<>"",$G$19,""))) -> 0 | H37: =IF(A37<>"",D37*$H$33,"") -> 0 | I37: =IF(A37<>"",H37+D37,"") -> 12572 | J37: 0 | K37: =IF(A37<>"",ROUND(D6-E37,2),0) -> 294678 | L37: 0 | M37: х | N37: х
A38: =IF(A37<$D$9,A37+1,"") -> 2 | B38: 2025-06-08 | D38: 12572 | E38: =IF(A39<>"",D38-F38-G38,IF(A38<>"",K37,0)) -> 5450.615 | F38: =IF(K37>0,K37*$E$17/12,0) -> 7121.385 | G38: =IF(AND(A38<>"",A38<=$D$17),$G$17,IF(AND(A38<>"",A38<=$D$17+$D$18),$G$18,IF(A38<>"",$G$19,""))) -> 0 | H38: 0 | I38: 12572 | J38: 0 | K38: =IF(A38<>"",ROUND(K37-E38,2),0) -> 289227.39 | L38: 0 | M38: х | N38: х
A39: 3 | B39: 2025-07-08 | D39: 12572 | E39: =IF(A40<>"",D39-F39-G39,IF(A39<>"",K38,0)) -> 5582.338075 | F39: =IF(K38>0,K38*$E$17/12,0) -> 6989.661925 | G39: =IF(AND(A39<>"",A39<=$D$17),$G$17,IF(AND(A39<>"",A39<=$D$17+$D$18),$G$18,IF(A39<>"",$G$19,""))) -> 0 | H39: 0 | I39: 12572 | J39: 0 | K39: =IF(A39<>"",ROUND(K38-E39,2),0) -> 283645.05 | L39: 0 | M39: х | N39: х
A40: 4 | B40: 2025-08-08 | D40: 12572 | E40: 5717.244625 | F40: 6854.755375 | G40: =IF(AND(A40<>"",A40<=$D$17),$G$17,IF(AND(A40<>"",A40<=$D$17+$D$18),$G$18,IF(A40<>"",$G$19,""))) -> 0 | H40: 0 | I40: 12572 | J40: 0 | K40: 277927.81 | L40: 0 | M40: х | N40: х
A41: 5 | B41: 2025-09-08 | D41: 12572 | E41: =IF(A42<>"",D41-F41-G41,IF(A41<>"",K40,0)) -> 5855.411258 | F41: 6716.588742 | G41: =IF(A41<=$D$9,$G$19,0) -> 0 | H41: 0 | I41: 12572 | J41: 0 | K41: 272072.4 | L41: 0 | M41: х | N41: х
A42: 6 | B42: 2025-10-08 | D42: 12572 | E42: =IF(A43<>"",D42-F42-G42,IF(A42<>"",K41,0)) -> 5996.917 | F42: 6575.083 | G42: =IF(A42<=$D$9,$G$19,0) -> 0 | H42: 0 | I42: 12572 | J42: 0 | K42: 266075.48 | L42: 0 | M42: х | N42: х
A43: 7 | B43: 2025-11-08 | D43: 12572 | E43: 6141.842567 | F43: 6430.157433 | G43: 0 | H43: 0 | I43: 12572 | J43: 0 | K43: 259933.64 | L43: 0 | M43: х | N43: х
A44: 8 | B44: 2025-12-08 | D44: 12572 | E44: 6290.270367 | F44: 6281.729633 | G44: 0 | H44: 0 | I44: 12572 | J44: 0 | K44: 253643.37 | L44: 0 | M44: х | N44: х
A45: 9 | B45: 2026-01-08 | D45: 12572 | E45: 6442.285225 | F45: 6129.714775 | G45: 0 | H45: 0 | I45: 12572 | J45: 0 | K45: 247201.08 | L45: 0 | M45: х | N45: х
A46: 10 | B46: 2026-02-08 | D46: 12572 | E46: 6597.9739 | F46: 5974.0261 | G46: 0 | H46: 0 | I46: 12572 | J46: 0 | K46: 240603.11 | L46: 0 | M46: х | N46: х
A47: 11 | B47: 2026-03-08 | D47: 12572 | E47: 6757.424842 | F47: 5814.575158 | G47: 0 | H47: 0 | I47: 12572 | J47: 0 | K47: 233845.69 | L47: 0 | M47: х | N47: х
A48: 12 | B48: 2026-04-08 | D48: 12572 | E48: 6920.729158 | F48: 5651.270842 | G48: 0 | H48: 0 | I48: 12572 | J48: 0 | K48: 226924.96 | L48: 0 | M48: х | N48: х
A49: 13 | B49: 2026-05-08 | D49: 12572 | E49: 7087.980133 | F49: 5484.019867 | G49: 0 | H49: 0 | I49: 12572 | J49: 0 | K49: 219836.98 | L49: 0 | M49: х | N49: х
A50: 14 | B50: 2026-06-08 | D50: 12572 | E50: 7259.272983 | F50: 5312.727017 | G50: 0 | H50: 0 | I50: 12572 | J50: 0 | K50: 212577.71 | L50: 0 | M50: х | N50: х
A51: 15 | B51: 2026-07-08 | D51: 12572 | E51: 7434.705342 | F51: 5137.294658 | G51: 0 | H51: 0 | I51: 12572 | J51: 0 | K51: 205143 | L51: 0 | M51: х | N51: х
A52: 16 | B52: 2026-08-08 | D52: 12572 | E52: 7614.3775 | F52: 4957.6225 | G52: 0 | H52: 0 | I52: 12572 | J52: 0 | K52: 197528.62 | L52: 0 | M52: х | N52: х
A53: 17 | B53: 2026-09-08 | D53: 12572 | E53: 7798.391683 | F53: 4773.608317 | G53: 0 | H53: 0 | I53: 12572 | J53: 0 | K53: 189730.23 | L53: 0 | M53: х | N53: х
A54: 18 | B54: 2026-10-08 | D54: 12572 | E54: 7986.852775 | F54: 4585.147225 | G54: 0 | H54: 0 | I54: 12572 | J54: 0 | K54: 181743.38 | L54: 0 | M54: х | N54: х
A55: 19 | B55: 2026-11-08 | D55: 12572 | E55: 8179.868317 | F55: 4392.131683 | G55: 0 | H55: 0 | I55: 12572 | J55: 0 | K55: 173563.51 | L55: 0 | M55: х | N55: х
A56: 20 | B56: 2026-12-08 | D56: 12572 | E56: 8377.548508 | F56: 4194.451492 | G56: 0 | H56: 0 | I56: 12572 | J56: 0 | K56: 165185.96 | L56: 0 | M56: х | N56: х
A57: 21 | B57: 2027-01-08 | D57: 12572 | E57: 8580.005967 | F57: 3991.994033 | G57: 0 | H57: 0 | I57: 12572 | J57: 0 | K57: 156605.95 | L57: 0 | M57: х | N57: х
A58: 22 | B58: 2027-02-08 | D58: 12572 | E58: 8787.356208 | F58: 3784.643792 | G58: 0 | H58: 0 | I58: 12572 | J58: 0 | K58: 147818.59 | L58: 0 | M58: х | N58: х
A59: 23 | B59: 2027-03-08 | D59: 12572 | E59: 8999.717408 | F59: 3572.282592 | G59: 0 | H59: 0 | I59: 12572 | J59: 0 | K59: 138818.87 | L59: 0 | M59: х | N59: х
A60: 24 | B60: 2027-04-08 | D60: 12572 | E60: 9217.210642 | F60: =IF(K59>0,K59*$E$17/12,0) -> 3354.789358 | G60: 0 | H60: 0 | I60: 12572 | J60: 0 | K60: 129601.66 | L60: 0 | M60: х | N60: х
A61: 25 | B61: 2027-05-08 | D61: 12572 | E61: 9439.959883 | F61: 3132.040117 | G61: 0 | H61: 0 | I61: 12572 | J61: 0 | K61: 120161.7 | L61: 0 | M61: х | N61: х
A62: 26 | B62: 2027-06-08 | D62: 12572 | E62: 9668.09225 | F62: 2903.90775 | G62: 0 | H62: 0 | I62: 12572 | J62: 0 | K62: 110493.61 | L62: 0 | M62: х | N62: х
A63: 27 | B63: 2027-07-08 | D63: 12572 | E63: 9901.737758 | F63: 2670.262242 | G63: 0 | H63: 0 | I63: 12572 | J63: 0 | K63: 100591.87 | L63: 0 | M63: х | N63: х
A64: 28 | B64: 2027-08-08 | D64: 12572 | E64: 10141.02981 | F64: 2430.970192 | G64: 0 | H64: 0 | I64: 12572 | J64: 0 | K64: 90450.84 | L64: 0 | M64: х | N64: х
A65: 29 | B65: 2027-09-08 | D65: 12572 | E65: 10386.1047 | F65: 2185.8953 | G65: 0 | H65: 0 | I65: 12572 | J65: 0 | K65: 80064.74 | L65: 0 | M65: х | N65: х
A66: 30 | B66: 2027-10-08 | D66: 12572 | E66: 10637.10212 | F66: 1934.897883 | G66: 0 | H66: 0 | I66: 12572 | J66: 0 | K66: 69427.64 | L66: 0 | M66: х | N66: х
A67: 31 | B67: 2027-11-08 | D67: 12572 | E67: 10894.16537 | F67: 1677.834633 | G67: 0 | H67: 0 | I67: 12572 | J67: 0 | K67: 58533.47 | L67: 0 | M67: х | N67: х
A68: 32 | B68: 2027-12-08 | D68: 12572 | E68: 11157.44114 | F68: 1414.558858 | G68: 0 | H68: 0 | I68: 12572 | J68: 0 | K68: 47376.03 | L68: 0 | M68: х | N68: х
A69: 33 | B69: 2028-01-08 | D69: 12572 | E69: 11427.07928 | F69: 1144.920725 | G69: 0 | H69: =IF(A69<>"",D69*$H$33,"") -> 0 | I69: =IF(A69<>"",H69+D69,"") -> 12572 | J69: 0 | K69: 35948.95 | L69: 0 | M69: х | N69: х
A70: 34 | B70: 2028-02-08 | D70: 12572 | E70: 11703.23371 | F70: 868.7662917 | G70: 0 | H70: 0 | I70: 12572 | J70: 0 | K70: 24245.72 | L70: 0 | M70: х | N70: х
A71: 35 | B71: 2028-03-08 | D71: 12572 | E71: 11986.06177 | F71: 585.9382333 | G71: 0 | H71: 0 | I71: 12572 | J71: 0 | K71: 12259.66 | L71: 0 | M71: х | N71: х
A72: 36 | B72: 2028-04-08 | D72: 12572 | E72: 12259.66 | F72: 296.2751167 | G72: 0 | H72: 0 | I72: 12572 | J72: 0 | K72: 0 | L72: 0 | M72: х | N72: х
B73: 2028-05-08 | D73: 0 | E73: 0 | F73: 0 | G73: 0 | J73: 0 | K73: 0 | L73: 0 | M73: х | N73: х
B74: 2028-06-08 | D74: 0 | E74: 0 | F74: 0 | G74: 0 | J74: 0 | K74: 0 | L74: 0 | M74: х | N74: х
B75: 2028-07-08 | D75: 0 | E75: 0 | F75: 0 | G75: 0 | J75: 0 | K75: 0 | L75: 0 | M75: х | N75: х
B76: 2028-08-08 | D76: 0 | E76: 0 | F76: 0 | G76: 0 | J76: 0 | K76: 0 | L76: 0 | M76: х | N76: х
B77: 2028-09-08 | D77: 0 | E77: 0 | F77: 0 | G77: 0 | J77: 0 | K77: 0 | L77: 0 | M77: х | N77: х
B78: 2028-10-08 | D78: 0 | E78: 0 | F78: 0 | G78: 0 | J78: 0 | K78: 0 | L78: 0 | M78: х | N78: х
B79: 2028-11-08 | D79: 0 | E79: 0 | F79: 0 | G79: 0 | J79: 0 | K79: 0 | L79: 0 | M79: х | N79: х
B80: 2028-12-08 | D80: 0 | E80: 0 | F80: 0 | G80: 0 | J80: 0 | K80: 0 | L80: 0 | M80: х | N80: х
B81: 2029-01-08 | D81: 0 | E81: 0 | F81: 0 | G81: 0 | J81: 0 | K81: 0 | L81: 0 | M81: х | N81: х
B82: 2029-02-08 | D82: 0 | E82: 0 | F82: 0 | G82: 0 | J82: 0 | K82: 0 | L82: 0 | M82: х | N82: х
B83: 2029-03-08 | D83: 0 | E83: 0 | F83: 0 | G83: 0 | J83: 0 | K83: 0 | L83: 0 | M83: х | N83: х
B84: 2029-04-08 | D84: 0 | E84: 0 | F84: 0 | G84: 0 | J84: 0 | K84: 0 | L84: 0 | M84: х | N84: х
B85: 2029-05-08 | D85: 0 | E85: 0 | F85: 0 | G85: 0 | J85: 0 | K85: 0 | L85: 0 | M85: х | N85: х
B86: 2029-06-08 | D86: 0 | E86: 0 | F86: 0 | G86: 0 | J86: 0 | K86: 0 | L86: 0 | M86: х | N86: х
B87: 2029-07-08 | D87: 0 | E87: 0 | F87: 0 | G87: 0 | J87: 0 | K87: 0 | L87: 0 | M87: х | N87: х
B88: 2029-08-08 | D88: 0 | E88: 0 | F88: 0 | G88: 0 | J88: 0 | K88: 0 | L88: 0 | M88: х | N88: х
B89: 2029-09-08 | D89: 0 | E89: 0 | F89: 0 | G89: 0 | J89: 0 | K89: 0 | L89: 0 | M89: х | N89: х
B90: 2029-10-08 | D90: 0 | E90: 0 | F90: 0 | G90: 0 | J90: 0 | K90: 0 | L90: 0 | M90: х | N90: х
B91: 2029-11-08 | D91: 0 | E91: 0 | F91: 0 | G91: 0 | J91: 0 | K91: 0 | L91: 0 | M91: х | N91: х
B92: 2029-12-08 | D92: 0 | E92: 0 | F92: 0 | G92: 0 | J92: 0 | K92: 0 | L92: 0 | M92: х | N92: х
B93: 2030-01-08 | D93: 0 | E93: 0 | F93: 0 | G93: 0 | J93: 0 | K93: 0 | L93: 0 | M93: х | N93: х
B94: 2030-02-08 | D94: 0 | E94: 0 | F94: 0 | G94: 0 | J94: 0 | K94: 0 | L94: 0 | M94: х | N94: х
B95: 2030-03-08 | D95: 0 | E95: 0 | F95: 0 | G95: 0 | J95: 0 | K95: 0 | L95: 0 | M95: х | N95: х
B96: 2030-04-08 | D96: 0 | E96: 0 | F96: 0 | G96: 0 | J96: 0 | K96: 0 | L96: 0 | M96: х | N96: х
A97: =IF(A96<$D$9,A84+1,"") ->  | B97: Усього | D97: =SUM(D37:D96) -> 452592 | E97: =SUM(E37:E96) -> 300000.0073 | F97: =SUM(F37:F96) -> 152575.9279 | G97: =SUM(G22:G96) -> 0 | J97: =J36 -> 5700 | K97: =IF(A97<>"",ROUND(K84-E97,2),"") ->  | L97: 0 | M97: =D29 -> 0.3508817732 | N97: =D31 -> 458275.9279
B99: Абсолютне значення подорожчання кредиту | H99: =#REF!-D6+D7+#REF! -> 
D100: Реальна процентна ставка | H100: =XIRR(D36:D96,B36:B96) -> 0.3508817732 | I100: =XIRR(I36:I60,B36:B60) -> 0.005527165532
H101: =H99/D6 -> 

Sheet 3,4 (hidden)
B2: Сума кредиту від 5000 до 150 000 | C2: =Калькулятор!D6 -> 300000 | D2: гривень
B3: Перший внесок | C3: 0 | D3: гривень
B5: Строк кредитування | C5: =Калькулятор!D9 -> 36 | D5: місяців | J5: =IF(AND(E11>=5000,E11<50000),R15,IF(AND(E11>=50000,E11<=100000),T15,IF(AND(E11>=100000,E11<200000),V15,IF(AND(E11>=200000,E11<=300000),X15,0)))) -> 0
B7: Одноразова комісія | C7: 0 | D7: =(C2-C3)*C7 -> 0 | E7: гривень
C9: Строк грейсу | D9: Процентна ставка | E9: Щомісячна комісія | F9: Сума щомісячної комісії
B10: Щомісячна комісія в 1й період | C10: 4 | D10: 0.0001 | E10: 0 | F10: =ROUND(E10*C17,0) -> 0 | G10: гривень | J10: =SUM(E23:F42) -> 163232.66
B11: Грейс період 2 | C11: 0 | D11: 0.0001 | E11: 0 | F11: =ROUND(E11*C17,0) -> 0 | G11: гривень
B12: Щомісячна комісія в 2й період | C12: =C5-C11-C10 -> 32 | D12: 0.0001 | E12: 0.034 | F12: =ROUND(E12*C17,0) -> 10200 | G12: гривень
B13: Страхування | C13: 0 | D13: =(C2-C3+(C2-C3)*C7+C2*C14*C5+C2*C15)*C13*C5 -> 0 | E13: гривень
B14: Страхування 2 | C14: 0 | D14: =C2*C14*C5 -> 0 | E14: гривень
B15: Страхування 3 | C15: 0 | D15: =C2*C15 -> 0 | E15: гривень
H16: =IRR(C22:C38)*12 -> -0.1037479164
B17: Сума кредиту | C17: =(C2-C3+(C2-C3)*C7+C2*C14*C5+C2*C15)*(1+C13*C5) -> 300000
B18: Сума ануїтету | C18: =ROUNDUP((C17+C10*F10+C11*F11+C12*F12-IF(C10=0,0,CUMIPMT(D10/12,C5,C17,1,C10,0))-IF(C11=0,0,CUMIPMT(D11/12,C5,C17,C10+1,C11+C10,0))-CUMIPMT(D12/12,C5,C17,IF(AND(C10=0,C11=0),1,C10+C11),C5,0))/C5,0)+D18 -> 17402 | D18: 0
G19: 0
A20: № | B20: Дата | C20: Сума внеску | D20: Кредит | E20: Проценти | F20: Комісія | G20: РКО | I20: Заборгованість
B22: 2013-04-15 | C22: =-(C2-C3) -> -300000 | H22: =-(C2-C3) -> -300000 | J22: =DAYS360(B23,B22) -> -30
A23: 1 | B23: 2013-05-15 | C23: =IF(A24<>"",ROUNDUP($C$18,0),IF(A23<>"",D23+E23+F23,"")) -> 17402 | D23: =C23-E23-F23 -> 17399.5 | E23: =IF(AND(A23<>"",A23<=$C$10,$C$10<>0),ROUND($C$17*DAYS360(B22,B23,1)*($D$10/360),2),IF(AND(A23<>"",A23<=$C$10+$C$11,$C$10<>0,$C$11<>0),ROUND($C$17*DAYS360(B22,B23,1)*($D$11/360),2),ROUND($C$17*$D$12*30/(360),2))) -> 2.5 | F23: =IF(AND(A23<>"",A23<=$C$10),$F$10,IF(AND(A23<>"",A23<=$C$10+$C$11),$F$11,IF(A23<>"",$F$12,""))) -> 0 | G23: =IF(A23<>"",C23*$G$19,"") -> 0 | H23: =IF(A23<>"",G23+C23,"") -> 17402 | I23: =IF(A23<>"",ROUND(C17-D23,2),"") -> 282600.5
A24: =IF(A23<$C$5,A23+1,"") -> 2 | B24: =IF(A24<>"",DATE(YEAR(B23),MONTH(B23)+1,DAY(B23)),"") -> 2013-06-15 | C24: 17402 | D24: =IF(A25<>"",C24-E24-F24,IF(A24<>"",I23,"")) -> 17399.64 | E24: =IF(AND(A24<>"",A24<=$C$10,$C$10<>0),ROUND(I23*$D$10*30/(360),2),IF(AND(A24<>"",A24<=$C$10+$C$11,$C$10<>0,$C$11<>0),ROUND(I23*$D$11*30/(360),2),IF(A24="","",ROUND(I23*$D$12*30/(360),2)))) -> 2.36 | F24: 0 | G24: 0 | H24: 17402 | I24: =IF(A24<>"",ROUND(I23-D24,2),"") -> 265200.86
A25: 3 | B25: 2013-07-15 | C25: 17402 | D25: 17399.79 | E25: =IF(AND(A25<>"",A25<=$C$10,$C$10<>0),ROUND(I24*$D$10*30/(360),2),IF(AND(A25<>"",A25<=$C$10+$C$11,$C$10<>0,$C$11<>0),ROUND(I24*$D$11*30/(360),2),IF(A25="","",ROUND(I24*$D$12*30/(360),2)))) -> 2.21 | F25: 0 | G25: 0 | H25: 17402 | I25: 247801.07
A26: 4 | B26: 2013-08-15 | C26: 17402 | D26: 17399.93 | E26: 2.07 | F26: 0 | G26: 0 | H26: 17402 | I26: 230401.14
A27: 5 | B27: 2013-09-15 | C27: 17402 | D27: 7200.08 | E27: 1.92 | F27: 10200 | G27: 0 | H27: 17402 | I27: 223201.06
A28: 6 | B28: 2013-10-15 | C28: 17402 | D28: 7200.14 | E28: 1.86 | F28: 10200 | G28: 0 | H28: 17402 | I28: 216000.92
A29: 7 | B29: 2013-11-15 | C29: 17402 | D29: 7200.2 | E29: 1.8 | F29: 10200 | G29: 0 | H29: 17402 | I29: 208800.72
A30: 8 | B30: 2013-12-15 | C30: 17402 | D30: 7200.26 | E30: 1.74 | F30: 10200 | G30: 0 | H30: 17402 | I30: 201600.46
A31: 9 | B31: 2014-01-15 | C31: 17402 | D31: 7200.32 | E31: 1.68 | F31: 10200 | G31: 0 | H31: 17402 | I31: 194400.14
A32: 10 | B32: 2014-02-15 | C32: 17402 | D32: 7200.38 | E32: 1.62 | F32: 10200 | G32: 0 | H32: 17402 | I32: 187199.76
A33: 11 | B33: 2014-03-15 | C33: 17402 | D33: 7200.44 | E33: 1.56 | F33: 10200 | G33: 0 | H33: 17402 | I33: 179999.32
A34: 12 | B34: 2014-04-15 | C34: 17402 | D34: 7200.5 | E34: 1.5 | F34: 10200 | G34: 0 | H34: 17402 | I34: 172798.82
A35: 13 | B35: 2014-05-15 | C35: 17402 | D35: 7200.56 | E35: 1.44 | F35: 10200 | G35: 0 | H35: 17402 | I35: 165598.26
A36: 14 | B36: 2014-06-15 | C36: 17402 | D36: 7200.62 | E36: 1.38 | F36: 10200 | G36: 0 | H36: 17402 | I36: 158397.64
A37: 15 | B37: 2014-07-15 | C37: 17402 | D37: 7200.68 | E37: 1.32 | F37: 10200 | G37: 0 | H37: 17402 | I37: 151196.96
A38: 16 | B38: 2014-08-15 | C38: 17402 | D38: 7200.74 | E38: 1.26 | F38: 10200 | G38: 0 | H38: 17402 | I38: 143996.22
A39: 17 | B39: 2014-09-15 | C39: 17402 | D39: 7200.8 | E39: 1.2 | F39: 10200 | G39: 0 | H39: 17402 | I39: 136795.42
A40: 18 | B40: 2014-10-15 | C40: 17402 | D40: 7200.86 | E40: 1.14 | F40: 10200 | G40: 0 | H40: 17402 | I40: 129594.56
A41: 19 | B41: 2014-11-15 | C41: 17402 | D41: 7200.92 | E41: 1.08 | F41: 10200 | G41: 0 | H41: 17402 | I41: 122393.64
A42: 20 | B42: 2014-12-15 | C42: 17402 | D42: 7200.98 | E42: 1.02 | F42: 10200 | G42: 0 | H42: 17402 | I42: 115192.66
A43: 21 | B43: 2015-01-15 | C43: 17402 | D43: 7201.04 | E43: 0.96 | F43: 10200 | G43: 0 | H43: 17402 | I43: 107991.62
A44: 22 | B44: 2015-02-15 | C44: 17402 | D44: 7201.1 | E44: 0.9 | F44: 10200 | G44: 0 | H44: 17402 | I44: 100790.52
A45: 23 | B45: 2015-03-15 | C45: 17402 | D45: 7201.16 | E45: 0.84 | F45: 10200 | G45: 0 | H45: 17402 | I45: 93589.36
A46: 24 | B46: 2015-04-15 | C46: 17402 | D46: 7201.22 | E46: 0.78 | F46: 10200 | G46: 0 | H46: 17402 | I46: 86388.14
A47: 25 | B47: 2015-05-15 | C47: 17402 | D47: 7201.28 | E47: 0.72 | F47: 10200 | G47: 0 | H47: 17402 | I47: 79186.86
A48: 26 | B48: 2015-06-15 | C48: 17402 | D48: 7201.34 | E48: 0.66 | F48: 10200 | G48: 0 | H48: 17402 | I48: 71985.52
A49: 27 | B49: 2015-07-15 | C49: 17402 | D49: 7201.4 | E49: 0.6 | F49: 10200 | G49: 0 | H49: 17402 | I49: 64784.12
A50: 28 | B50: 2015-08-15 | C50: 17402 | D50: 7201.46 | E50: 0.54 | F50: 10200 | G50: 0 | H50: 17402 | I50: 57582.66
A51: 29 | B51: 2015-09-15 | C51: 17402 | D51: 7201.52 | E51: 0.48 | F51: 10200 | G51: 0 | H51: 17402 | I51: 50381.14
A52: 30 | B52: 2015-10-15 | C52: 17402 | D52: 7201.58 | E52: 0.42 | F52: 10200 | G52: 0 | H52: 17402 | I52: 43179.56
A53: 31 | B53: 2015-11-15 | C53: 17402 | D53: 7201.64 | E53: 0.36 | F53: 10200 | G53: 0 | H53: 17402 | I53: 35977.92
A54: 32 | B54: 2015-12-15 | C54: 17402 | D54: 7201.7 | E54: 0.3 | F54: 10200 | G54: 0 | H54: 17402 | I54: 28776.22
A55: 33 | B55: 2016-01-15 | C55: 17402 | D55: 7201.76 | E55: 0.24 | F55: 10200 | G55: 0 | H55: 17402 | I55: 21574.46
A56: 34 | B56: 2016-02-15 | C56: 17402 | D56: 7201.82 | E56: 0.18 | F56: 10200 | G56: 0 | H56: 17402 | I56: 14372.64
A57: 35 | B57: 2016-03-15 | C57: 17402 | D57: 7201.88 | E57: 0.12 | F57: 10200 | G57: 0 | H57: 17402 | I57: 7170.76
A58: 36 | B58: 2016-04-15 | C58: 17370.82 | D58: 7170.76 | E58: =IF(AND(A58<>"",A58<=$C$10,$C$10<>0),ROUND(I57*$D$10*30/(360),2),IF(AND(A58<>"",A58<=$C$10+$C$11,$C$10<>0,$C$11<>0),ROUND(I57*$D$11*30/(360),2),IF(A58="","",ROUND(I57*$D$12*30/(360),2)))) -> 0.06 | F58: =IF(AND(A58<>"",A58<=$C$10),$F$10,IF(AND(A58<>"",A58<=$C$10+$C$11),$F$11,IF(A58<>"",$F$12,""))) -> 10200 | G58: 0 | H58: 17370.82 | I58: 0
E66: =IF(AND(A66<>"",A66<=$C$10),ROUND(I65*$D$10*30/(360),2),IF(AND(A66<>"",A66<=$C$10+$C$11),ROUND(I65*$D$11*30/(360),2),IF(A66<>"",ROUND(I65*$D$12*30/(360),2),""))) -> 
C82: =SUM(D82:F82) -> 0 | D82: =I81 -> 
B83: Всього: | C83: =SUM(C23:C82) -> 626440.82 | D83: =SUM(D23:D82) -> 300000 | E83: =SUM(E23:E58) -> 40.82 | F83: =SUM(F23:F82) -> 326400 | G83: =SUM(G23:G82) -> 0 | H83: =SUM(H23:H82) -> 626440.82
B85: Абсолютне значення подорожчання кредиту | G85: =C83-C2+C3+G83 -> 326440.82
C86: Реальна процентна ставка | G86: =XIRR(C22:C38,B22:B38) -> -0.09883627295 | H86: =XIRR(H22:H46,B22:B46) -> 0.3980894983
G87: =G85/C2 -> 1.088136067

Sheet 3,25 (hidden)
B2: Сума кредиту від 5000 до 150 000 | C2: =Калькулятор!D6 -> 300000 | D2: гривень
B3: Перший внесок | C3: 0 | D3: гривень
B5: Строк кредитування | C5: =Калькулятор!D9 -> 36 | D5: місяців
B7: Одноразова комісія | C7: 0 | D7: =(C2-C3)*C7 -> 0 | E7: гривень
C9: Строк грейсу | D9: Процентна ставка | E9: Щомісячна комісія | F9: Сума щомісячної комісії
B10: Щомісячна комісія в 1й період | C10: 4 | D10: 0.0001 | E10: 0 | F10: =ROUND(E10*C17,0) -> 0 | G10: гривень | J10: =SUM(E23:F42) -> 156032.84
B11: Грейс період 2 | C11: 0 | D11: 0.0001 | E11: 0 | F11: =ROUND(E11*C17,0) -> 0 | G11: гривень
B12: Щомісячна комісія в 2й період | C12: =C5-C11-C10 -> 32 | D12: 0.0001 | E12: 0.0325 | F12: =ROUND(E12*C17,0) -> 9750 | G12: гривень
B13: Страхування | C13: 0 | D13: =(C2-C3+(C2-C3)*C7+C2*C14*C5+C2*C15)*C13*C5 -> 0 | E13: гривень
B14: Страхування 2 | C14: 0 | D14: =C2*C14*C5 -> 0 | E14: гривень
B15: Страхування 3 | C15: 0 | D15: =C2*C15 -> 0 | E15: гривень
H16: =IRR(C22:C38)*12 -> -0.1354563222
B17: Сума кредиту | C17: =(C2-C3+(C2-C3)*C7+C2*C14*C5+C2*C15)*(1+C13*C5) -> 300000
B18: Сума ануїтету | C18: =ROUNDUP((C17+C10*F10+C11*F11+C12*F12-IF(C10=0,0,CUMIPMT(D10/12,C5,C17,1,C10,0))-IF(C11=0,0,CUMIPMT(D11/12,C5,C17,C10+1,C11+C10,0))-CUMIPMT(D12/12,C5,C17,IF(AND(C10=0,C11=0),1,C10+C11),C5,0))/C5,0)+D18 -> 17002 | D18: 0
G19: 0
A20: № | B20: Дата | C20: Сума внеску | D20: Кредит | E20: Проценти | F20: Комісія | G20: РКО | I20: Заборгованість
B22: 2013-04-15 | C22: =-(C2-C3) -> -300000 | H22: =-(C2-C3) -> -300000 | J22: =DAYS360(B23,B22) -> -30
A23: 1 | B23: 2013-05-15 | C23: =IF(A24<>"",ROUNDUP($C$18,0),IF(A23<>"",D23+E23+F23,"")) -> 17002 | D23: =C23-E23-F23 -> 16999.5 | E23: =IF(AND(A23<>"",A23<=$C$10,$C$10<>0),ROUND($C$17*DAYS360(B22,B23,1)*($D$10/360),2),IF(AND(A23<>"",A23<=$C$10+$C$11,$C$10<>0,$C$11<>0),ROUND($C$17*DAYS360(B22,B23,1)*($D$11/360),2),ROUND($C$17*$D$12*30/(360),2))) -> 2.5 | F23: =IF(AND(A23<>"",A23<=$C$10),$F$10,IF(AND(A23<>"",A23<=$C$10+$C$11),$F$11,IF(A23<>"",$F$12,""))) -> 0 | G23: =IF(A23<>"",C23*$G$19,"") -> 0 | H23: =IF(A23<>"",G23+C23,"") -> 17002 | I23: =IF(A23<>"",ROUND(C17-D23,2),"") -> 283000.5
A24: =IF(A23<$C$5,A23+1,"") -> 2 | B24: =IF(A24<>"",DATE(YEAR(B23),MONTH(B23)+1,DAY(B23)),"") -> 2013-06-15 | C24: 17002 | D24: =IF(A25<>"",C24-E24-F24,IF(A24<>"",I23,"")) -> 16999.64 | E24: =IF(AND(A24<>"",A24<=$C$10,$C$10<>0),ROUND(I23*$D$10*30/(360),2),IF(AND(A24<>"",A24<=$C$10+$C$11,$C$10<>0,$C$11<>0),ROUND(I23*$D$11*30/(360),2),IF(A24="","",ROUND(I23*$D$12*30/(360),2)))) -> 2.36 | F24: 0 | G24: 0 | H24: 17002 | I24: =IF(A24<>"",ROUND(I23-D24,2),"") -> 266000.86
A25: 3 | B25: 2013-07-15 | C25: 17002 | D25: 16999.78 | E25: =IF(AND(A25<>"",A25<=$C$10,$C$10<>0),ROUND(I24*$D$10*30/(360),2),IF(AND(A25<>"",A25<=$C$10+$C$11,$C$10<>0,$C$11<>0),ROUND(I24*$D$11*30/(360),2),IF(A25="","",ROUND(I24*$D$12*30/(360),2)))) -> 2.22 | F25: 0 | G25: 0 | H25: 17002 | I25: 249001.08
A26: 4 | B26: 2013-08-15 | C26: 17002 | D26: 16999.92 | E26: 2.08 | F26: 0 | G26: 0 | H26: 17002 | I26: 232001.16
A27: 5 | B27: 2013-09-15 | C27: 17002 | D27: 7250.07 | E27: 1.93 | F27: 9750 | G27: 0 | H27: 17002 | I27: 224751.09
A28: 6 | B28: 2013-10-15 | C28: 17002 | D28: 7250.13 | E28: 1.87 | F28: 9750 | G28: 0 | H28: 17002 | I28: 217500.96
A29: 7 | B29: 2013-11-15 | C29: 17002 | D29: 7250.19 | E29: 1.81 | F29: 9750 | G29: 0 | H29: 17002 | I29: 210250.77
A30: 8 | B30: 2013-12-15 | C30: 17002 | D30: 7250.25 | E30: 1.75 | F30: 9750 | G30: 0 | H30: 17002 | I30: 203000.52
A31: 9 | B31: 2014-01-15 | C31: 17002 | D31: 7250.31 | E31: 1.69 | F31: 9750 | G31: 0 | H31: 17002 | I31: 195750.21
A32: 10 | B32: 2014-02-15 | C32: 17002 | D32: 7250.37 | E32: 1.63 | F32: 9750 | G32: 0 | H32: 17002 | I32: 188499.84
A33: 11 | B33: 2014-03-15 | C33: 17002 | D33: 7250.43 | E33: 1.57 | F33: 9750 | G33: 0 | H33: 17002 | I33: 181249.41
A34: 12 | B34: 2014-04-15 | C34: 17002 | D34: 7250.49 | E34: 1.51 | F34: 9750 | G34: 0 | H34: 17002 | I34: 173998.92
A35: 13 | B35: 2014-05-15 | C35: 17002 | D35: 7250.55 | E35: 1.45 | F35: 9750 | G35: 0 | H35: 17002 | I35: 166748.37
A36: 14 | B36: 2014-06-15 | C36: 17002 | D36: 7250.61 | E36: 1.39 | F36: 9750 | G36: 0 | H36: 17002 | I36: 159497.76
A37: 15 | B37: 2014-07-15 | C37: 17002 | D37: 7250.67 | E37: 1.33 | F37: 9750 | G37: 0 | H37: 17002 | I37: 152247.09
A38: 16 | B38: 2014-08-15 | C38: 17002 | D38: 7250.73 | E38: 1.27 | F38: 9750 | G38: 0 | H38: 17002 | I38: 144996.36
A39: 17 | B39: 2014-09-15 | C39: 17002 | D39: 7250.79 | E39: 1.21 | F39: 9750 | G39: 0 | H39: 17002 | I39: 137745.57
A40: 18 | B40: 2014-10-15 | C40: 17002 | D40: 7250.85 | E40: 1.15 | F40: 9750 | G40: 0 | H40: 17002 | I40: 130494.72
A41: 19 | B41: 2014-11-15 | C41: 17002 | D41: 7250.91 | E41: 1.09 | F41: 9750 | G41: 0 | H41: 17002 | I41: 123243.81
A42: 20 | B42: 2014-12-15 | C42: 17002 | D42: 7250.97 | E42: 1.03 | F42: 9750 | G42: 0 | H42: 17002 | I42: 115992.84
A43: 21 | B43: 2015-01-15 | C43: 17002 | D43: 7251.03 | E43: 0.97 | F43: 9750 | G43: 0 | H43: 17002 | I43: 108741.81
A44: 22 | B44: 2015-02-15 | C44: 17002 | D44: 7251.09 | E44: 0.91 | F44: 9750 | G44: 0 | H44: 17002 | I44: 101490.72
A45: 23 | B45: 2015-03-15 | C45: 17002 | D45: 7251.15 | E45: 0.85 | F45: 9750 | G45: 0 | H45: 17002 | I45: 94239.57
A46: 24 | B46: 2015-04-15 | C46: 17002 | D46: 7251.21 | E46: 0.79 | F46: 9750 | G46: 0 | H46: 17002 | I46: 86988.36
A47: 25 | B47: 2015-05-15 | C47: 17002 | D47: 7251.28 | E47: 0.72 | F47: 9750 | G47: 0 | H47: 17002 | I47: 79737.08
A48: 26 | B48: 2015-06-15 | C48: 17002 | D48: 7251.34 | E48: 0.66 | F48: 9750 | G48: 0 | H48: 17002 | I48: 72485.74
A49: 27 | B49: 2015-07-15 | C49: 17002 | D49: 7251.4 | E49: 0.6 | F49: 9750 | G49: 0 | H49: 17002 | I49: 65234.34
A50: 28 | B50: 2015-08-15 | C50: 17002 | D50: 7251.46 | E50: 0.54 | F50: 9750 | G50: 0 | H50: 17002 | I50: 57982.88
A51: 29 | B51: 2015-09-15 | C51: 17002 | D51: 7251.52 | E51: 0.48 | F51: 9750 | G51: 0 | H51: 17002 | I51: 50731.36
A52: 30 | B52: 2015-10-15 | C52: 17002 | D52: 7251.58 | E52: 0.42 | F52: 9750 | G52: 0 | H52: 17002 | I52: 43479.78
A53: 31 | B53: 2015-11-15 | C53: 17002 | D53: 7251.64 | E53: 0.36 | F53: 9750 | G53: 0 | H53: 17002 | I53: 36228.14
A54: 32 | B54: 2015-12-15 | C54: 17002 | D54: 7251.7 | E54: 0.3 | F54: 9750 | G54: 0 | H54: 17002 | I54: 28976.44
A55: 33 | B55: 2016-01-15 | C55: 17002 | D55: 7251.76 | E55: 0.24 | F55: 9750 | G55: 0 | H55: 17002 | I55: 21724.68
A56: 34 | B56: 2016-02-15 | C56: 17002 | D56: 7251.82 | E56: 0.18 | F56: 9750 | G56: 0 | H56: 17002 | I56: 14472.86
A57: 35 | B57: 2016-03-15 | C57: 17002 | D57: 7251.88 | E57: 0.12 | F57: 9750 | G57: 0 | H57: 17002 | I57: 7220.98
A58: 36 | B58: 2016-04-15 | C58: 16971.04 | D58: 7220.98 | E58: =IF(AND(A58<>"",A58<=$C$10,$C$10<>0),ROUND(I57*$D$10*30/(360),2),IF(AND(A58<>"",A58<=$C$10+$C$11,$C$10<>0,$C$11<>0),ROUND(I57*$D$11*30/(360),2),IF(A58="","",ROUND(I57*$D$12*30/(360),2)))) -> 0.06 | F58: =IF(AND(A58<>"",A58<=$C$10),$F$10,IF(AND(A58<>"",A58<=$C$10+$C$11),$F$11,IF(A58<>"",$F$12,""))) -> 9750 | G58: 0 | H58: 16971.04 | I58: 0
E66: =IF(AND(A66<>"",A66<=$C$10),ROUND(I65*$D$10*30/(360),2),IF(AND(A66<>"",A66<=$C$10+$C$11),ROUND(I65*$D$11*30/(360),2),IF(A66<>"",ROUND(I65*$D$12*30/(360),2),""))) -> 
C82: =SUM(D82:F82) -> 0 | D82: =I81 -> 
B83: Всього: | C83: =SUM(C23:C82) -> 612041.04 | D83: =SUM(D23:D82) -> 300000 | E83: =SUM(E23:E58) -> 41.04 | F83: =SUM(F23:F82) -> 312000 | G83: =SUM(G23:G82) -> 0 | H83: =SUM(H23:H82) -> 612041.04
B85: Абсолютне значення подорожчання кредиту | G85: =C83-C2+C3+G83 -> 312041.04
C86: Реальна процентна ставка | G86: =XIRR(C22:C38,B22:B38) -> -0.1272072989 | H86: =XIRR(H22:H46,B22:B46) -> 0.3637891829
G87: =G85/C2 -> 1.0401368

Sheet 3,05 (hidden)
B2: Сума кредиту від 5000 до 150 000 | C2: =Калькулятор!D6 -> 300000 | D2: гривень
B3: Перший внесок | C3: 0 | D3: гривень
B5: Строк кредитування | C5: =Калькулятор!D9 -> 36 | D5: місяців
B7: Одноразова комісія | C7: 0 | D7: =(C2-C3)*C7 -> 0 | E7: гривень
C9: Строк грейсу | D9: Процентна ставка | E9: Щомісячна комісія | F9: Сума щомісячної комісії
B10: Щомісячна комісія в 1й період | C10: 4 | D10: 0.0001 | E10: 0 | F10: =ROUND(E10*C17,0) -> 0 | G10: гривень | J10: =SUM(E23:F42) -> 146433.09
B11: Грейс період 2 | C11: 0 | D11: 0.0001 | E11: 0 | F11: =ROUND(E11*C17,0) -> 0 | G11: гривень
B12: Щомісячна комісія в 2й період | C12: =C5-C11-C10 -> 32 | D12: 0.0001 | E12: 0.0305 | F12: =ROUND(E12*C17,0) -> 9150 | G12: гривень
B13: Страхування | C13: 0 | D13: =(C2-C3+(C2-C3)*C7+C2*C14*C5+C2*C15)*C13*C5 -> 0 | E13: гривень
B14: Страхування 2 | C14: 0 | D14: =C2*C14*C5 -> 0 | E14: гривень
B15: Страхування 3 | C15: 0 | D15: =C2*C15 -> 0 | E15: гривень
H16: =IRR(C22:C38)*12 -> -0.1784213909
B17: Сума кредиту | C17: =(C2-C3+(C2-C3)*C7+C2*C14*C5+C2*C15)*(1+C13*C5) -> 300000
B18: Сума ануїтету | C18: =ROUNDUP((C17+C10*F10+C11*F11+C12*F12-IF(C10=0,0,CUMIPMT(D10/12,C5,C17,1,C10,0))-IF(C11=0,0,CUMIPMT(D11/12,C5,C17,C10+1,C11+C10,0))-CUMIPMT(D12/12,C5,C17,IF(AND(C10=0,C11=0),1,C10+C11),C5,0))/C5,0)+D18 -> 16469 | D18: 0
G19: 0
A20: № | B20: Дата | C20: Сума внеску | D20: Кредит | E20: Проценти | F20: Комісія | G20: РКО | I20: Заборгованість
B22: 2013-04-15 | C22: =-(C2-C3) -> -300000 | H22: =-(C2-C3) -> -300000 | J22: =DAYS360(B23,B22) -> -30
A23: 1 | B23: 2013-05-15 | C23: =IF(A24<>"",ROUNDUP($C$18,0),IF(A23<>"",D23+E23+F23,"")) -> 16469 | D23: =C23-E23-F23 -> 16466.5 | E23: =IF(AND(A23<>"",A23<=$C$10,$C$10<>0),ROUND($C$17*DAYS360(B22,B23,1)*($D$10/360),2),IF(AND(A23<>"",A23<=$C$10+$C$11,$C$10<>0,$C$11<>0),ROUND($C$17*DAYS360(B22,B23,1)*($D$11/360),2),ROUND($C$17*$D$12*30/(360),2))) -> 2.5 | F23: =IF(AND(A23<>"",A23<=$C$10),$F$10,IF(AND(A23<>"",A23<=$C$10+$C$11),$F$11,IF(A23<>"",$F$12,""))) -> 0 | G23: =IF(A23<>"",C23*$G$19,"") -> 0 | H23: =IF(A23<>"",G23+C23,"") -> 16469 | I23: =IF(A23<>"",ROUND(C17-D23,2),"") -> 283533.5
A24: =IF(A23<$C$5,A23+1,"") -> 2 | B24: =IF(A24<>"",DATE(YEAR(B23),MONTH(B23)+1,DAY(B23)),"") -> 2013-06-15 | C24: 16469 | D24: =IF(A25<>"",C24-E24-F24,IF(A24<>"",I23,"")) -> 16466.64 | E24: =IF(AND(A24<>"",A24<=$C$10,$C$10<>0),ROUND(I23*$D$10*30/(360),2),IF(AND(A24<>"",A24<=$C$10+$C$11,$C$10<>0,$C$11<>0),ROUND(I23*$D$11*30/(360),2),IF(A24="","",ROUND(I23*$D$12*30/(360),2)))) -> 2.36 | F24: 0 | G24: 0 | H24: 16469 | I24: =IF(A24<>"",ROUND(I23-D24,2),"") -> 267066.86
A25: 3 | B25: 2013-07-15 | C25: 16469 | D25: 16466.77 | E25: =IF(AND(A25<>"",A25<=$C$10,$C$10<>0),ROUND(I24*$D$10*30/(360),2),IF(AND(A25<>"",A25<=$C$10+$C$11,$C$10<>0,$C$11<>0),ROUND(I24*$D$11*30/(360),2),IF(A25="","",ROUND(I24*$D$12*30/(360),2)))) -> 2.23 | F25: 0 | G25: 0 | H25: 16469 | I25: 250600.09
A26: 4 | B26: 2013-08-15 | C26: 16469 | D26: 16466.91 | E26: 2.09 | F26: 0 | G26: 0 | H26: 16469 | I26: 234133.18
A27: 5 | B27: 2013-09-15 | C27: 16469 | D27: 7317.05 | E27: 1.95 | F27: 9150 | G27: 0 | H27: 16469 | I27: 226816.13
A28: 6 | B28: 2013-10-15 | C28: 16469 | D28: 7317.11 | E28: 1.89 | F28: 9150 | G28: 0 | H28: 16469 | I28: 219499.02
A29: 7 | B29: 2013-11-15 | C29: 16469 | D29: 7317.17 | E29: 1.83 | F29: 9150 | G29: 0 | H29: 16469 | I29: 212181.85
A30: 8 | B30: 2013-12-15 | C30: 16469 | D30: 7317.23 | E30: 1.77 | F30: 9150 | G30: 0 | H30: 16469 | I30: 204864.62
A31: 9 | B31: 2014-01-15 | C31: 16469 | D31: 7317.29 | E31: 1.71 | F31: 9150 | G31: 0 | H31: 16469 | I31: 197547.33
A32: 10 | B32: 2014-02-15 | C32: 16469 | D32: 7317.35 | E32: 1.65 | F32: 9150 | G32: 0 | H32: 16469 | I32: 190229.98
A33: 11 | B33: 2014-03-15 | C33: 16469 | D33: 7317.41 | E33: 1.59 | F33: 9150 | G33: 0 | H33: 16469 | I33: 182912.57
A34: 12 | B34: 2014-04-15 | C34: 16469 | D34: 7317.48 | E34: 1.52 | F34: 9150 | G34: 0 | H34: 16469 | I34: 175595.09
A35: 13 | B35: 2014-05-15 | C35: 16469 | D35: 7317.54 | E35: 1.46 | F35: 9150 | G35: 0 | H35: 16469 | I35: 168277.55
A36: 14 | B36: 2014-06-15 | C36: 16469 | D36: 7317.6 | E36: 1.4 | F36: 9150 | G36: 0 | H36: 16469 | I36: 160959.95
A37: 15 | B37: 2014-07-15 | C37: 16469 | D37: 7317.66 | E37: 1.34 | F37: 9150 | G37: 0 | H37: 16469 | I37: 153642.29
A38: 16 | B38: 2014-08-15 | C38: 16469 | D38: 7317.72 | E38: 1.28 | F38: 9150 | G38: 0 | H38: 16469 | I38: 146324.57
A39: 17 | B39: 2014-09-15 | C39: 16469 | D39: 7317.78 | E39: 1.22 | F39: 9150 | G39: 0 | H39: 16469 | I39: 139006.79
A40: 18 | B40: 2014-10-15 | C40: 16469 | D40: 7317.84 | E40: 1.16 | F40: 9150 | G40: 0 | H40: 16469 | I40: 131688.95
A41: 19 | B41: 2014-11-15 | C41: 16469 | D41: 7317.9 | E41: 1.1 | F41: 9150 | G41: 0 | H41: 16469 | I41: 124371.05
A42: 20 | B42: 2014-12-15 | C42: 16469 | D42: 7317.96 | E42: 1.04 | F42: 9150 | G42: 0 | H42: 16469 | I42: 117053.09
A43: 21 | B43: 2015-01-15 | C43: 16469 | D43: 7318.02 | E43: 0.98 | F43: 9150 | G43: 0 | H43: 16469 | I43: 109735.07
A44: 22 | B44: 2015-02-15 | C44: 16469 | D44: 7318.09 | E44: 0.91 | F44: 9150 | G44: 0 | H44: 16469 | I44: 102416.98
A45: 23 | B45: 2015-03-15 | C45: 16469 | D45: 7318.15 | E45: 0.85 | F45: 9150 | G45: 0 | H45: 16469 | I45: 95098.83
A46: 24 | B46: 2015-04-15 | C46: 16469 | D46: 7318.21 | E46: 0.79 | F46: 9150 | G46: 0 | H46: 16469 | I46: 87780.62
A47: 25 | B47: 2015-05-15 | C47: 16469 | D47: 7318.27 | E47: 0.73 | F47: 9150 | G47: 0 | H47: 16469 | I47: 80462.35
A48: 26 | B48: 2015-06-15 | C48: 16469 | D48: 7318.33 | E48: 0.67 | F48: 9150 | G48: 0 | H48: 16469 | I48: 73144.02
A49: 27 | B49: 2015-07-15 | C49: 16469 | D49: 7318.39 | E49: 0.61 | F49: 9150 | G49: 0 | H49: 16469 | I49: 65825.63
A50: 28 | B50: 2015-08-15 | C50: 16469 | D50: 7318.45 | E50: 0.55 | F50: 9150 | G50: 0 | H50: 16469 | I50: 58507.18
A51: 29 | B51: 2015-09-15 | C51: 16469 | D51: 7318.51 | E51: 0.49 | F51: 9150 | G51: 0 | H51: 16469 | I51: 51188.67
A52: 30 | B52: 2015-10-15 | C52: 16469 | D52: 7318.57 | E52: 0.43 | F52: 9150 | G52: 0 | H52: 16469 | I52: 43870.1
A53: 31 | B53: 2015-11-15 | C53: 16469 | D53: 7318.63 | E53: 0.37 | F53: 9150 | G53: 0 | H53: 16469 | I53: 36551.47
A54: 32 | B54: 2015-12-15 | C54: 16469 | D54: 7318.7 | E54: 0.3 | F54: 9150 | G54: 0 | H54: 16469 | I54: 29232.77
A55: 33 | B55: 2016-01-15 | C55: 16469 | D55: 7318.76 | E55: 0.24 | F55: 9150 | G55: 0 | H55: 16469 | I55: 21914.01
A56: 34 | B56: 2016-02-15 | C56: 16469 | D56: 7318.82 | E56: 0.18 | F56: 9150 | G56: 0 | H56: 16469 | I56: 14595.19
A57: 35 | B57: 2016-03-15 | C57: 16469 | D57: 7318.88 | E57: 0.12 | F57: 9150 | G57: 0 | H57: 16469 | I57: 7276.31
A58: 36 | B58: 2016-04-15 | C58: 16426.37 | D58: 7276.31 | E58: =IF(AND(A58<>"",A58<=$C$10,$C$10<>0),ROUND(I57*$D$10*30/(360),2),IF(AND(A58<>"",A58<=$C$10+$C$11,$C$10<>0,$C$11<>0),ROUND(I57*$D$11*30/(360),2),IF(A58="","",ROUND(I57*$D$12*30/(360),2)))) -> 0.06 | F58: =IF(AND(A58<>"",A58<=$C$10),$F$10,IF(AND(A58<>"",A58<=$C$10+$C$11),$F$11,IF(A58<>"",$F$12,""))) -> 9150 | G58: 0 | H58: 16426.37 | I58: 0
E66: =IF(AND(A66<>"",A66<=$C$10),ROUND(I65*$D$10*30/(360),2),IF(AND(A66<>"",A66<=$C$10+$C$11),ROUND(I65*$D$11*30/(360),2),IF(A66<>"",ROUND(I65*$D$12*30/(360),2),""))) -> 
C82: =SUM(D82:F82) -> 0 | D82: =I81 -> 
B83: Всього: | C83: =SUM(C23:C82) -> 592841.37 | D83: =SUM(D23:D82) -> 300000 | E83: =SUM(E23:E58) -> 41.37 | F83: =SUM(F23:F82) -> 292800 | G83: =SUM(G23:G82) -> 0 | H83: =SUM(H23:H82) -> 592841.37
B85: Абсолютне значення подорожчання кредиту | G85: =C83-C2+C3+G83 -> 292841.37
C86: Реальна процентна ставка | G86: =XIRR(C22:C38,B22:B38) -> -0.1643455338 | H86: =XIRR(H22:H46,B22:B46) -> 0.3186233819
G87: =G85/C2 -> 0.9761379

Sheet 2,7 (hidden)
B2: Сума кредиту від 5000 до 150 000 | C2: =Калькулятор!D6 -> 300000 | D2: гривень
B3: Перший внесок | C3: 0 | D3: гривень
B5: Строк кредитування | C5: =Калькулятор!D9 -> 36 | D5: місяців
B7: Одноразова комісія | C7: 0 | D7: =(C2-C3)*C7 -> 0 | E7: гривень
C9: Строк грейсу | D9: Процентна ставка | E9: Щомісячна комісія | F9: Сума щомісячної комісії
B10: Щомісячна комісія в 1й період | C10: 4 | D10: 0.0001 | E10: 0 | F10: =ROUND(E10*C17,0) -> 0 | G10: гривень | J10: =SUM(E23:F42) -> 129633.5
B11: Грейс період 2 | C11: 0 | D11: 0.0001 | E11: 0 | F11: =ROUND(E11*C17,0) -> 0 | G11: гривень
B12: Щомісячна комісія в 2й період | C12: =C5-C11-C10 -> 32 | D12: 0.0001 | E12: 0.027 | F12: =ROUND(E12*C17,0) -> 8100 | G12: гривень
B13: Страхування | C13: 0 | D13: =(C2-C3+(C2-C3)*C7+C2*C14*C5+C2*C15)*C13*C5 -> 0 | E13: гривень
B14: Страхування 2 | C14: 0 | D14: =C2*C14*C5 -> 0 | E14: гривень
B15: Страхування 3 | C15: 0 | D15: =C2*C15 -> 0 | E15: гривень
H16: =IRR(C22:C38)*12 -> -0.2558254053
B17: Сума кредиту | C17: =(C2-C3+(C2-C3)*C7+C2*C14*C5+C2*C15)*(1+C13*C5) -> 300000
B18: Сума ануїтету | C18: =ROUNDUP((C17+C10*F10+C11*F11+C12*F12-IF(C10=0,0,CUMIPMT(D10/12,C5,C17,1,C10,0))-IF(C11=0,0,CUMIPMT(D11/12,C5,C17,C10+1,C11+C10,0))-CUMIPMT(D12/12,C5,C17,IF(AND(C10=0,C11=0),1,C10+C11),C5,0))/C5,0)+D18 -> 15535 | D18: 0
G19: 0
A20: № | B20: Дата | C20: Сума внеску | D20: Кредит | E20: Проценти | F20: Комісія | G20: РКО | I20: Заборгованість
B22: 2013-04-15 | C22: =-(C2-C3) -> -300000 | H22: =-(C2-C3) -> -300000 | J22: =DAYS360(B23,B22) -> -30
A23: 1 | B23: 2013-05-15 | C23: =IF(A24<>"",ROUNDUP($C$18,0),IF(A23<>"",D23+E23+F23,"")) -> 15535 | D23: =C23-E23-F23 -> 15532.5 | E23: =IF(AND(A23<>"",A23<=$C$10,$C$10<>0),ROUND($C$17*DAYS360(B22,B23,1)*($D$10/360),2),IF(AND(A23<>"",A23<=$C$10+$C$11,$C$10<>0,$C$11<>0),ROUND($C$17*DAYS360(B22,B23,1)*($D$11/360),2),ROUND($C$17*$D$12*30/(360),2))) -> 2.5 | F23: =IF(AND(A23<>"",A23<=$C$10),$F$10,IF(AND(A23<>"",A23<=$C$10+$C$11),$F$11,IF(A23<>"",$F$12,""))) -> 0 | G23: =IF(A23<>"",C23*$G$19,"") -> 0 | H23: =IF(A23<>"",G23+C23,"") -> 15535 | I23: =IF(A23<>"",ROUND(C17-D23,2),"") -> 284467.5
A24: =IF(A23<$C$5,A23+1,"") -> 2 | B24: =IF(A24<>"",DATE(YEAR(B23),MONTH(B23)+1,DAY(B23)),"") -> 2013-06-15 | C24: 15535 | D24: =IF(A25<>"",C24-E24-F24,IF(A24<>"",I23,"")) -> 15532.63 | E24: =IF(AND(A24<>"",A24<=$C$10,$C$10<>0),ROUND(I23*$D$10*30/(360),2),IF(AND(A24<>"",A24<=$C$10+$C$11,$C$10<>0,$C$11<>0),ROUND(I23*$D$11*30/(360),2),IF(A24="","",ROUND(I23*$D$12*30/(360),2)))) -> 2.37 | F24: 0 | G24: 0 | H24: 15535 | I24: =IF(A24<>"",ROUND(I23-D24,2),"") -> 268934.87
A25: 3 | B25: 2013-07-15 | C25: 15535 | D25: 15532.76 | E25: =IF(AND(A25<>"",A25<=$C$10,$C$10<>0),ROUND(I24*$D$10*30/(360),2),IF(AND(A25<>"",A25<=$C$10+$C$11,$C$10<>0,$C$11<>0),ROUND(I24*$D$11*30/(360),2),IF(A25="","",ROUND(I24*$D$12*30/(360),2)))) -> 2.24 | F25: 0 | G25: 0 | H25: 15535 | I25: 253402.11
A26: 4 | B26: 2013-08-15 | C26: 15535 | D26: 15532.89 | E26: 2.11 | F26: 0 | G26: 0 | H26: 15535 | I26: 237869.22
A27: 5 | B27: 2013-09-15 | C27: 15535 | D27: 7433.02 | E27: 1.98 | F27: 8100 | G27: 0 | H27: 15535 | I27: 230436.2
A28: 6 | B28: 2013-10-15 | C28: 15535 | D28: 7433.08 | E28: 1.92 | F28: 8100 | G28: 0 | H28: 15535 | I28: 223003.12
A29: 7 | B29: 2013-11-15 | C29: 15535 | D29: 7433.14 | E29: 1.86 | F29: 8100 | G29: 0 | H29: 15535 | I29: 215569.98
A30: 8 | B30: 2013-12-15 | C30: 15535 | D30: 7433.2 | E30: 1.8 | F30: 8100 | G30: 0 | H30: 15535 | I30: 208136.78
A31: 9 | B31: 2014-01-15 | C31: 15535 | D31: 7433.27 | E31: 1.73 | F31: 8100 | G31: 0 | H31: 15535 | I31: 200703.51
A32: 10 | B32: 2014-02-15 | C32: 15535 | D32: 7433.33 | E32: 1.67 | F32: 8100 | G32: 0 | H32: 15535 | I32: 193270.18
A33: 11 | B33: 2014-03-15 | C33: 15535 | D33: 7433.39 | E33: 1.61 | F33: 8100 | G33: 0 | H33: 15535 | I33: 185836.79
A34: 12 | B34: 2014-04-15 | C34: 15535 | D34: 7433.45 | E34: 1.55 | F34: 8100 | G34: 0 | H34: 15535 | I34: 178403.34
A35: 13 | B35: 2014-05-15 | C35: 15535 | D35: 7433.51 | E35: 1.49 | F35: 8100 | G35: 0 | H35: 15535 | I35: 170969.83
A36: 14 | B36: 2014-06-15 | C36: 15535 | D36: 7433.58 | E36: 1.42 | F36: 8100 | G36: 0 | H36: 15535 | I36: 163536.25
A37: 15 | B37: 2014-07-15 | C37: 15535 | D37: 7433.64 | E37: 1.36 | F37: 8100 | G37: 0 | H37: 15535 | I37: 156102.61
A38: 16 | B38: 2014-08-15 | C38: 15535 | D38: 7433.7 | E38: 1.3 | F38: 8100 | G38: 0 | H38: 15535 | I38: 148668.91
A39: 17 | B39: 2014-09-15 | C39: 15535 | D39: 7433.76 | E39: 1.24 | F39: 8100 | G39: 0 | H39: 15535 | I39: 141235.15
A40: 18 | B40: 2014-10-15 | C40: 15535 | D40: 7433.82 | E40: 1.18 | F40: 8100 | G40: 0 | H40: 15535 | I40: 133801.33
A41: 19 | B41: 2014-11-15 | C41: 15535 | D41: 7433.88 | E41: 1.12 | F41: 8100 | G41: 0 | H41: 15535 | I41: 126367.45
A42: 20 | B42: 2014-12-15 | C42: 15535 | D42: 7433.95 | E42: 1.05 | F42: 8100 | G42: 0 | H42: 15535 | I42: 118933.5
A43: 21 | B43: 2015-01-15 | C43: 15535 | D43: 7434.01 | E43: 0.99 | F43: 8100 | G43: 0 | H43: 15535 | I43: 111499.49
A44: 22 | B44: 2015-02-15 | C44: 15535 | D44: 7434.07 | E44: 0.93 | F44: 8100 | G44: 0 | H44: 15535 | I44: 104065.42
A45: 23 | B45: 2015-03-15 | C45: 15535 | D45: 7434.13 | E45: 0.87 | F45: 8100 | G45: 0 | H45: 15535 | I45: 96631.29
A46: 24 | B46: 2015-04-15 | C46: 15535 | D46: 7434.19 | E46: 0.81 | F46: 8100 | G46: 0 | H46: 15535 | I46: 89197.1
A47: 25 | B47: 2015-05-15 | C47: 15535 | D47: 7434.26 | E47: 0.74 | F47: 8100 | G47: 0 | H47: 15535 | I47: 81762.84
A48: 26 | B48: 2015-06-15 | C48: 15535 | D48: 7434.32 | E48: 0.68 | F48: 8100 | G48: 0 | H48: 15535 | I48: 74328.52
A49: 27 | B49: 2015-07-15 | C49: 15535 | D49: 7434.38 | E49: 0.62 | F49: 8100 | G49: 0 | H49: 15535 | I49: 66894.14
A50: 28 | B50: 2015-08-15 | C50: 15535 | D50: 7434.44 | E50: 0.56 | F50: 8100 | G50: 0 | H50: 15535 | I50: 59459.7
A51: 29 | B51: 2015-09-15 | C51: 15535 | D51: 7434.5 | E51: 0.5 | F51: 8100 | G51: 0 | H51: 15535 | I51: 52025.2
A52: 30 | B52: 2015-10-15 | C52: 15535 | D52: 7434.57 | E52: 0.43 | F52: 8100 | G52: 0 | H52: 15535 | I52: 44590.63
A53: 31 | B53: 2015-11-15 | C53: 15535 | D53: 7434.63 | E53: 0.37 | F53: 8100 | G53: 0 | H53: 15535 | I53: 37156
A54: 32 | B54: 2015-12-15 | C54: 15535 | D54: 7434.69 | E54: 0.31 | F54: 8100 | G54: 0 | H54: 15535 | I54: 29721.31
A55: 33 | B55: 2016-01-15 | C55: 15535 | D55: 7434.75 | E55: 0.25 | F55: 8100 | G55: 0 | H55: 15535 | I55: 22286.56
A56: 34 | B56: 2016-02-15 | C56: 15535 | D56: 7434.81 | E56: 0.19 | F56: 8100 | G56: 0 | H56: 15535 | I56: 14851.75
A57: 35 | B57: 2016-03-15 | C57: 15535 | D57: 7434.88 | E57: 0.12 | F57: 8100 | G57: 0 | H57: 15535 | I57: 7416.87
A58: 36 | B58: 2016-04-15 | C58: 15516.93 | D58: 7416.87 | E58: =IF(AND(A58<>"",A58<=$C$10,$C$10<>0),ROUND(I57*$D$10*30/(360),2),IF(AND(A58<>"",A58<=$C$10+$C$11,$C$10<>0,$C$11<>0),ROUND(I57*$D$11*30/(360),2),IF(A58="","",ROUND(I57*$D$12*30/(360),2)))) -> 0.06 | F58: =IF(AND(A58<>"",A58<=$C$10),$F$10,IF(AND(A58<>"",A58<=$C$10+$C$11),$F$11,IF(A58<>"",$F$12,""))) -> 8100 | G58: 0 | H58: 15516.93 | I58: 0
E66: =IF(AND(A66<>"",A66<=$C$10),ROUND(I65*$D$10*30/(360),2),IF(AND(A66<>"",A66<=$C$10+$C$11),ROUND(I65*$D$11*30/(360),2),IF(A66<>"",ROUND(I65*$D$12*30/(360),2),""))) -> 
C82: =SUM(D82:F82) -> 0 | D82: =I81 -> 
B83: Всього: | C83: =SUM(C23:C82) -> 559241.93 | D83: =SUM(D23:D82) -> 300000 | E83: =SUM(E23:E58) -> 41.93 | F83: =SUM(F23:F82) -> 259200 | G83: =SUM(G23:G82) -> 0 | H83: =SUM(H23:H82) -> 559241.93
B85: Абсолютне значення подорожчання кредиту | G85: =C83-C2+C3+G83 -> 259241.93
C86: Реальна процентна ставка | G86: =XIRR(C22:C38,B22:B38) -> -0.2276213892 | H86: =XIRR(H22:H46,B22:B46) -> 0.2409159243
G87: =G85/C2 -> 0.8641397667
